bitfinex-derivatives/quotes_ETHF0:USTF0_20250906
["timestamp","ask_amount","ask_price","bid_price","bid_amount"]
[1757126809385,0.3017,4318.4,4318.3,0.5559]
[1757126809595,0.3017,4318.4,4318.3,1.09889178]
[1757126809884,0.1232,4318.5,4318.4,0.5559]
[1757126810089,0.1232,4318.5,4318.4,0.86589178]
[1757126810288,0.1232,4318.5,4318.4,1.09889178]
[1757126810490,0.4249,4318.5,4318.4,2.14822005]
[1757126810688,0.4249,4318.5,4318.4,1.91522005]
[1757126810890,0.4249,4318.5,4318.4,2.14822005]
[1757126811478,0.98994322,4318.5,4318.4,2.14822005]
[1757126812391,0.98994322,4318.5,4318.4,2.14986074]
[1757126813186,0.3017,4318.5,4318.4,3.19918901]
[1757126813382,0.3017,4318.7,4318.6,0.4197]
[1757126813586,0.4717,4318.9,4318.8,0.4197]
[1757126813786,1.0369501,4318.9,4318.8,2.14986074]
[1757126814977,1.0369501,4318.9,4318.8,2.14954002]
[1757126815692,0.6812,4318.9,4318.8,2.14954002]
[1757126817995,0.4717,4318.9,4318.8,2.14954002]
[1757126818196,0.6812,4318.9,4318.8,2.14954002]
[1757126819198,0.8862,4318.9,4318.8,0.31131175]
[1757126819497,0.8862,4318.9,4318.8,1.59364002]
[1757126819685,0.8862,4318.9,4318.8,2.01334002]
[1757126820083,0.8862,4318.9,4318.8,0.31131175]
[1757126820289,0.8862,4318.9,4318.8,1.59364002]
[1757126820491,0.8862,4318.9,4318.8,1.80664002]
[1757126820995,0.8862,4318.9,4318.8,2.01334002]
[1757126821193,0.6812,4318.9,4318.8,2.14954002]
[1757126821398,0.4717,4318.9,4318.8,2.14954002]
[1757126821590,0.17,4318.9,4318.8,2.14954002]
[1757126824693,3.2078,4319.4,4318.8,2.14954002]
[1757126824894,3.4173,4319.4,4319.3,1.04932827]
[1757126825092,3.2078,4319.4,4319.3,1.59364002]
[1757126825392,3.5095,4319.4,4319.3,1.59364002]
[1757126825989,0.3017,4319.4,4319.3,1.59364002]
[1757126826298,0.5112,4319.4,4319.3,1.59364002]
[1757126829295,0.3017,4319.4,4319.3,1.59364002]
[1757126834403,0.3017,4319.9,4319.3,6.87448829]
[1757126834604,0.3017,4319.9,4319.8,1.04932827]
[1757126834803,0.3017,4319.9,4319.8,1.59364002]
[1757126835498,0.7162,4319.9,4319.8,1.36064002]
[1757126835698,0.7162,4319.9,4319.8,1.59464002]
[1757126836502,0.7162,4319.9,4319.8,0.31131175]
[1757126836808,0.4145,4319.3,4319.2,31.959]
[1757126837003,0.7162,4319.3,4319.2,32.193]
[1757126837401,0.7162,4319.3,4319.2,32.4851]
[1757126838802,0.7162,4319.3,4319.2,32.193]
[1757126839004,0.3017,4319.3,4319.2,32.4882]
[1757126839307,0.3204,4319.9,4319.3,0.2952]
[1757126839513,0.5178,4319.9,4319.8,1.74602827]
[1757126839698,0.5178,4319.9,4319.8,1.98002827]
[1757126841301,0.7238,4319.9,4319.8,1.74602827]
[1757126841508,0.7238,4319.9,4319.8,1.98002827]
[1757126842507,0.7238,4319.9,4319.8,0.6967]
[1757126842698,0.7238,4319.9,4319.8,1.98002827]
[1757126843409,0.3204,4320.4,4319.8,1.68482827]
[1757126843611,0.7238,4320.4,4320.3,1.54012827]
[1757126843802,1.28924636,4320.4,4320.3,1.98002827]
[1757126845010,1.28924636,4320.4,4320.3,1.47892827]
[1757126845204,0.7238,4320.4,4320.3,1.98002827]
[1757126845410,3.2078,4320.6,4320.3,1.98002827]
[1757126845609,3.7256,4320.6,4320.5,0.4015]
[1757126845808,0.5178,4320.6,4320.5,0.6967]
[1757126846410,0.5178,4320.6,4320.5,1.86492827]
[1757126846911,0.1974,4320.6,4320.5,0.8156]
[1757126847106,0.5178,4320.9,4320.8,0.4015]
[1757126847310,0.7238,4320.9,4320.8,1.98002827]
[1757126849411,0.7238,4320.9,4320.8,1.47892827]
[1757126850111,0.7238,4320.9,4320.8,1.77412827]
[1757126850514,0.7238,4320.9,4320.8,1.53150583]
[1757126850714,0.3204,4320.8,4320.7,0.233]
[1757126850908,0.7238,4320.8,4320.7,0.51958035]
[1757126851110,0.7238,4320.8,4320.7,1.21628035]
[1757126855715,1.28916869,4320.8,4320.7,1.21628035]
[1757126856818,3.5282,4321.7,4320.8,0.2952]
[1757126857014,0.5282,4321.5,4321.4,0.1956]
[1757126857211,1.41403322,4321.5,4321.4,0.7248]
[1757126858307,1.41403322,4321.5,4321.4,0.234]
[1757126858710,1.41403322,4321.5,4321.4,0.4296]
[1757126859116,1.41403322,4321.5,4321.4,0.1956]
[1757126859316,1.41403322,4321.5,4321.4,0.234]
[1757126860818,1.41403322,4321.5,4321.4,0.4296]
[1757126862217,1.41403322,4321.5,4321.2,0.2952]
[1757126862417,1.28923322,4321.4,4321.3,1.28332827]
[1757126862917,1.28923322,4321.4,4321.3,1.77412827]
[1757126863413,1.28923322,4321.4,4321.3,0.7248]
[1757126863619,1.28923322,4321.4,4321.3,0.9307]
[1757126865617,0.7238,4321.4,4321.3,0.9307]
[1757126867116,0.7238,4321.4,4321.3,0.9297]
[1757126870725,0.6976,4321.4,4321.3,0.9297]
[1757126876629,0.6976,4321.4,4320.0,0.53553]
[1757126876630,0.2895,4321.3,4320.7,0.3063]
[1757126876937,0.6946,4320.6,4320.5,1.95594424]
[1757126877135,0.6946,4320.6,4320.5,2.18894424]
[1757126878445,0.6946,4320.6,4320.5,1.95594424]
[1757126878645,0.6946,4320.6,4320.5,2.18894424]
[1757126879336,0.1208,4320.5,4320.1,3.2078]
[1757126879543,0.6946,4320.2,4320.1,0.2004]
[1757126879742,0.6946,4320.2,4320.1,0.4334]
[1757126879944,0.6946,4320.2,4320.1,0.7397]
[1757126880242,0.6946,4320.2,4320.1,0.9515]
[1757126881145,3.6129,4321.3,4321.2,0.7185]
[1757126881341,4.17870804,4321.3,4321.2,1.95594424]
[1757126881739,4.46820804,4321.3,4321.2,1.95594424]
[1757126883441,3.77360804,4321.3,4321.2,1.95594424]
[1757126884039,3.96800804,4321.3,4321.2,1.95594424]
[1757126884237,4.25750804,4321.3,4321.2,1.95594424]
[1757126885447,1.04970804,4321.3,4321.2,1.95594424]
[1757126886542,1.26040804,4321.3,4321.2,1.95594424]
[1757126887254,1.26040804,4321.3,4321.2,2.18994424]
[1757126888353,1.26040804,4321.3,4321.2,1.95594424]
[1757126888542,1.26040804,4321.3,4321.2,2.18994424]
[1757126892154,1.26077514,4321.3,4321.2,2.18994424]
[1757126893348,0.76057514,4321.3,4321.2,2.18994424]
[1757126893545,1.05007514,4321.3,4321.2,2.18994424]
[1757126895356,1.26077514,4321.3,4321.2,1.95594424]
[1757126895655,1.26077514,4321.3,4321.2,2.18894424]
[1757126900158,3.2078,4321.9,4321.2,5.09044424]
[1757126900358,0.7171,4321.7,4321.6,0.418]
[1757126900561,1.28343627,4321.7,4321.6,1.96374424]
[1757126901262,1.28343627,4321.7,4321.6,2.19674424]
[1757126902657,0.56633627,4321.7,4321.6,2.19674424]
[1757126902853,0.77083627,4321.7,4321.6,2.19674424]
[1757126903058,1.28343627,4321.7,4321.6,2.19674424]
[1757126903364,0.7171,4321.7,4321.6,2.19674424]
[1757126904060,0.7171,4321.7,4321.6,1.96374424]
[1757126904262,0.7171,4321.7,4321.6,2.19674424]
[1757126904463,1.28322343,4321.7,4321.6,2.19674424]
[1757126904665,0.7171,4321.7,4321.6,2.19674424]
[1757126905666,1.28334372,4321.7,4321.6,2.19674424]
[1757126911073,1.28334372,4321.7,4321.6,0.7263]
[1757126911274,1.28334372,4321.7,4321.6,0.9593]
[1757126912980,1.28334372,4321.7,4321.6,0.7263]
[1757126913178,1.28334372,4321.7,4321.3,0.3083]
[1757126913478,0.8345,4321.0,4320.9,0.517]
[1757126913678,1.40074372,4321.0,4320.9,0.75]
[1757126913982,1.40074372,4321.0,4320.9,0.9593]
[1757126914476,1.28334372,4321.0,4320.9,0.9593]
[1757126915778,0.7171,4321.0,4320.9,0.9593]
[1757126916876,0.7171,4321.7,4321.6,0.7263]
[1757126917077,1.28434444,4321.7,4321.6,0.9593]
[1757126917383,1.51573444,4321.7,4321.6,0.9593]
[1757126917682,1.28434444,4321.7,4321.6,0.9593]
[1757126922383,1.28434444,4321.7,4321.6,0.9603]
[1757126922582,1.28434444,4321.7,4321.6,0.7263]
[1757126922974,1.28434444,4321.7,4321.6,0.9603]
[1757126925578,1.28434444,4321.7,4321.6,2.00766242]
[1757126925787,0.7171,4321.6,4321.5,0.233]
[1757126926080,1.28434444,4321.6,4321.5,0.233]
[1757126926381,1.28434444,4321.6,4321.3,1.04736242]
[1757126926382,0.7171,4321.4,4321.3,1.79736242]
[1757126926681,1.28434444,4321.4,4321.3,1.79736242]
[1757126932982,1.28434444,4321.4,4321.3,2.00136242]
[1757126938090,0.77174444,4321.4,4321.3,2.00136242]
[1757126939395,1.07254444,4321.4,4321.3,2.00136242]
[1757126943593,0.56724444,4321.4,4321.3,2.00136242]
[1757126943793,0.3008,4321.7,4321.3,1.69306242]
[1757126943995,0.56724444,4321.6,4321.5,0.5301]
[1757126944398,0.56724444,4321.6,4321.5,0.8337]
[1757126944599,1.06684444,4321.6,4321.5,0.8337]
[1757126945092,1.06684444,4321.6,4321.5,2.92842484]
[1757126945093,0.56724444,4321.6,4321.5,2.92842484]
[1757126945300,4.0411,4322.5,4322.4,0.5039]
[1757126945488,4.60921425,4322.5,4322.4,0.5039]
[1757126948604,1.06771425,4322.5,4322.4,0.7079]
[1757126950798,0.76691425,4322.5,4322.4,0.9409]
[1757126951099,0.56811425,4322.5,4322.4,0.9409]
[1757126953400,0.4996,4322.8,4322.7,0.7079]
[1757126953601,0.4996,4322.8,4322.7,1.75526242]
[1757126953804,1.08542417,4322.8,4322.7,1.75526242]
[1757126955409,1.29832417,4322.8,4322.7,1.75526242]
[1757126957420,1.29832417,4322.8,4322.7,1.52356242]
[1757126957619,1.29832417,4322.8,4322.7,1.72386242]
[1757126958112,0.7125,4322.8,4322.7,1.72386242]
[1757126958418,0.4996,4322.8,4322.7,1.72386242]
[1757126962917,3.3361,4323.5,4322.7,1.72386242]
[1757126963118,0.5,4323.3,4323.2,0.4128]
[1757126963316,1.12260072,4323.3,4323.2,0.7289]
[1757126963514,1.33620072,4323.3,4323.2,0.7289]
[1757126963925,1.33620072,4323.3,4323.2,0.4128]
[1757126964325,1.33620072,4323.3,4323.2,1.46016242]
[1757126964727,1.33620072,4323.3,4323.2,1.04736242]
[1757126965527,1.33619675,4323.3,4323.2,1.04736242]
[1757126966626,1.33619675,4323.3,4323.2,1.25676242]
[1757126967628,1.33619675,4323.3,4323.2,1.02506242]
[1757126968931,1.33619675,4323.3,4323.2,0.81566242]
[1757126970330,1.33619675,4323.3,4322.9,0.233]
[1757126970522,3.3361,4323.5,4322.9,0.233]
[1757126970523,0.299,4323.0,4322.9,0.9619]
[1757126970727,0.62259675,4323.1,4322.9,0.9619]
[1757126970929,0.62259675,4323.0,4322.9,1.19321]
[1757126971228,0.299,4323.3,4323.2,0.7289]
[1757126971430,0.5,4323.3,4323.2,0.7289]
[1757126971634,1.12286847,4323.3,4323.2,1.77626242]
[1757126976137,1.33646847,4323.3,4323.2,1.46016242]
[1757126976537,1.12286847,4323.3,4323.2,1.77626242]
[1757126977640,1.12286847,4323.3,4323.2,1.22846242]
[1757126977833,1.33646847,4323.3,4323.2,1.43786242]
[1757126978335,1.33646847,4323.3,4323.2,0.3905]
[1757126978538,1.33646847,4323.3,4323.2,1.67086242]
[1757126982442,1.33646847,4323.3,4323.2,0.2094]
[1757126982644,1.33646847,4323.3,4323.2,1.54129544]
[1757126982942,1.33646847,4323.3,4323.2,1.74469544]
[1757126984344,1.33646847,4323.3,4323.2,1.56489544]
[1757126984943,1.33646847,4323.3,4323.2,1.77429544]
[1757126986747,1.33646847,4323.3,4323.2,1.56489544]
[1757126987244,1.33646847,4323.3,4323.2,1.33189544]
[1757126987445,1.33646847,4323.3,4323.2,1.52086326]
[1757126988247,1.37787363,4323.3,4323.2,1.52086326]
[1757126989557,1.37787363,4323.3,4323.2,1.73016326]
[1757126990150,1.37787363,4323.3,4323.2,1.52086326]
[1757126993348,1.37787363,4323.3,4323.2,0.28453302]
[1757126993849,2.61365536,4323.3,4323.2,0.28453302]
[1757127000155,0.4158,4322.7,4322.6,0.4423]
[1757127000353,0.7056,4322.7,4322.6,0.49400251]
[1757127000554,1.36987363,4322.7,4322.6,0.49400251]
[1757127001158,1.36987363,4322.7,4322.6,0.69290251]
[1757127002059,0.4158,4322.2,4322.0,0.233]
[1757127002258,1.36987363,4322.2,4322.1,4.72873434]
[1757127002460,1.36987363,4322.2,4322.1,4.93803434]
[1757127004152,0.95407363,4322.2,4322.1,5.30653434]
[1757127004359,0.49467363,4322.2,4322.1,9.53790434]
[1757127004564,0.49467363,4322.2,4322.1,9.77090434]
[1757127004761,0.49467363,4322.2,4322.1,9.53953434]
[1757127005155,0.2898,4322.6,4322.1,9.53953434]
[1757127005156,0.2898,4322.6,4322.1,9.77090434]
[1757127005355,0.2898,4322.6,4322.5,1.23633024]
[1757127005656,0.2898,4322.6,4322.5,1.52093434]
[1757127007061,0.2898,4322.6,4322.5,1.75393434]
[1757127007663,0.2898,4322.9,4322.5,5.75393434]
[1757127007862,0.2898,4322.9,4322.8,1.23633024]
[1757127008055,0.2898,4322.9,4322.8,1.52093434]
[1757127008554,0.2137,4323.4,4322.8,1.52093434]
[1757127008861,0.7056,4323.4,4323.3,1.23633024]
[1757127009063,0.7056,4323.4,4323.3,1.46933024]
[1757127009261,0.7056,4323.4,4323.3,1.23633024]
[1757127009458,0.8287,4323.0,4322.9,1.23633024]
[1757127009656,0.8287,4323.0,4322.9,0.51711121]
[1757127015853,0.8287,4323.0,4322.9,0.28411121]
[1757127017254,1.49640739,4323.0,4322.9,0.28411121]
[1757127020274,1.49640739,4323.0,4322.9,1.52044145]
[1757127020672,1.49640739,4323.0,4322.9,1.75344145]
[1757127022174,1.49640739,4323.0,4322.9,0.51711121]
[1757127025476,1.49640739,4323.0,4322.9,0.28411121]
[1757127031988,1.49640739,4323.0,4322.9,0.28609323]
[1757127035784,2.7446546,4323.0,4322.9,0.28609323]
[1757127037093,1.49640739,4323.0,4322.9,0.28609323]
[1757127042496,2.7446546,4323.0,4322.9,0.28609323]
[1757127043996,1.49640739,4323.0,4322.9,0.28609323]
[1757127044598,2.7446546,4323.0,4322.9,0.28609323]
[1757127045096,1.49640739,4323.0,4322.9,0.28609323]
[1757127045396,2.7446546,4323.0,4322.9,0.28609323]
[1757127045596,1.49640739,4323.0,4322.9,0.28609323]
[1757127046186,1.20660739,4323.0,4322.9,0.28595923]
[1757127046595,1.52080739,4323.0,4322.9,0.28595923]
[1757127048198,2.7690546,4323.0,4322.9,0.28595923]
[1757127049500,2.7690546,4323.0,4322.9,1.33269584]
[1757127050903,1.52080739,4323.0,4322.9,1.33269584]
[1757127065616,1.10500739,4323.0,4322.9,1.56401584]
[1757127065822,1.10500739,4323.0,4322.9,1.33269584]
[1757127066415,0.98190739,4323.0,4322.9,5.56401584]
[1757127066616,0.66770739,4323.0,4322.9,5.56401584]
[1757127066921,0.96820739,4323.0,4322.9,5.56401584]
[1757127067717,0.66770739,4323.0,4322.9,5.33269584]
[1757127068326,0.96820739,4323.0,4322.9,5.33269584]
[1757127069921,1.08780739,4323.0,4322.9,5.33269584]
[1757127070923,1.08780739,4323.0,4322.9,5.56569584]
[1757127071222,1.29630739,4323.0,4322.9,5.56569584]
[1757127071620,1.29630739,4323.0,4322.9,1.56569584]
[1757127071925,1.49490739,4323.0,4322.9,1.56569584]
[1757127072925,1.49490739,4323.0,4322.9,1.27973661]
[1757127073523,1.49490739,4323.0,4322.9,1.04673661]
[1757127073728,1.49490739,4323.0,4322.9,1.27973661]
[1757127075630,1.49490739,4323.0,4322.8,5.371]
[1757127075631,0.7076,4322.9,4322.8,5.371]
[1757127075832,1.37530739,4322.9,4322.8,5.603]
[1757127076731,0.96820739,4322.9,4322.8,6.64973661]
[1757127077831,0.96820739,4322.9,4322.8,1.27873661]
[1757127078133,1.17670739,4322.9,4322.8,1.27873661]
[1757127078319,1.37530739,4322.9,4322.8,1.27873661]
[1757127079232,1.37530739,4322.9,4322.8,1.27953661]
[1757127079429,1.37530739,4322.9,4322.8,1.28033661]
[1757127079731,1.17670739,4322.9,4322.8,1.28033661]
[1757127081934,1.17559354,4322.9,4322.8,1.28033661]
[1757127083641,1.36899354,4322.9,4322.8,1.28033661]
[1757127084638,1.36899354,4322.9,4322.8,1.04833661]
[1757127084938,1.36899354,4322.9,4322.8,1.28033661]
[1757127085644,1.36899354,4322.9,4322.8,1.27953661]
[1757127087140,1.36899354,4322.9,4322.8,0.2328]
[1757127087337,1.36899354,4322.9,4322.8,1.27953661]
[1757127087633,1.36899354,4322.9,4322.8,1.04753661]
[1757127087834,1.36899354,4322.9,4322.8,1.27953661]
[1757127088139,1.36899354,4322.9,4322.8,1.27873661]
[1757127088329,1.36899354,4322.9,4322.7,3.2078]
[1757127088330,0.6908,4322.8,4322.7,3.2078]
[1757127088536,1.35739354,4322.8,4322.7,3.4398]
[1757127091243,0.6908,4322.7,4322.6,1.04673661]
[1757127091445,1.05949354,4322.7,4322.4,1.04673661]
[1757127091645,0.2979,4322.4,4322.1,4.25453661]
[1757127091845,1.35739354,4322.3,4322.2,0.232]
[1757127092045,1.35739354,4322.3,4322.2,1.27873661]
[1757127093950,0.117,4322.0,4321.9,1.04673661]
[1757127094255,0.117,4322.0,4321.6,3.2078]
[1757127094256,0.3929,4321.7,4321.6,4.25453661]
[1757127094550,1.35739354,4321.7,4321.6,4.48653661]
[1757127098152,0.6908,4321.7,4321.6,4.48653661]
[1757127098347,1.35589467,4321.7,4321.6,4.48653661]
[1757127098659,0.6908,4321.7,4321.6,4.48653661]
[1757127098854,1.35588688,4321.7,4321.6,4.48653661]
[1757127099256,0.6908,4321.7,4321.6,4.48653661]
[1757127099558,1.3557454,4321.7,4321.6,4.48653661]
[1757127099756,0.6908,4321.7,4321.6,4.48653661]
[1757127099953,1.35574528,4321.7,4321.6,4.48653661]
[1757127104160,0.6908,4321.7,4321.6,4.48653661]
[1757127107462,0.6908,4321.7,4321.6,4.48753661]
[1757127109162,1.3553642,4321.7,4321.6,4.48753661]
[1757127109561,1.3553642,4321.7,4321.6,3.4408]
[1757127112167,1.1619642,4321.7,4321.6,3.4408]
[1757127114972,0.6645642,4321.7,4321.6,3.4408]
[1757127117377,0.9799642,4321.7,4321.6,3.4408]
[1757127125179,0.6645642,4321.7,4321.6,3.4408]
[1757127125581,0.9799642,4321.7,4321.6,3.4408]
[1757127128077,0.6645642,4321.7,4321.6,3.4408]
[1757127131085,0.6645642,4321.7,4321.6,7.4408]
[1757127131384,0.6645642,4321.7,4321.6,12.8118]
[1757127131779,0.8710642,4321.7,4321.6,8.5788]
[1757127131984,1.1864642,4321.7,4321.6,8.8108]
[1757127133083,1.1864642,4321.7,4321.6,3.2078]
[1757127133286,1.3792642,4321.7,4321.6,3.4398]
[1757127133789,1.3792642,4321.7,4321.6,3.2078]
[1757127133988,1.3792642,4321.7,4321.6,3.4398]
[1757127135689,1.3792642,4321.7,4321.6,3.2078]
[1757127135893,1.3792642,4321.7,4321.6,3.4398]
[1757127140490,1.38159614,4321.7,4321.6,3.2078]
[1757127140689,1.38159614,4321.7,4321.6,3.4398]
[1757127141690,0.408,4321.1,4321.0,3.2078]
[1757127141996,1.38089614,4321.1,4321.0,3.4398]
[1757127147902,0.714,4321.1,4321.0,3.4398]
[1757127148098,1.38000252,4321.1,4321.0,3.4398]
[1757127159414,0.97200252,4321.1,4321.0,4.67696234]
[1757127163219,0.97200792,4321.1,4321.0,4.67696234]
[1757127165919,1.16880792,4321.1,4321.0,4.67696234]
[1757127166218,1.16880792,4321.1,4321.0,3.2078]
[1757127166418,1.16880792,4321.1,4321.0,3.4408]
[1757127167516,1.38000792,4321.1,4321.0,3.4408]
[1757127169423,1.38000792,4321.1,4321.0,4.48848684]
[1757127170418,1.38000792,4321.1,4321.0,1.28068684]
[1757127176724,0.97200792,4321.1,4321.0,1.28068684]
[1757127177538,1.16670792,4321.1,4321.0,1.28068684]
[1757127178632,1.16866617,4321.1,4321.0,1.28068684]
[1757127180237,1.16866357,4321.1,4321.0,1.28068684]
[1757127180642,1.16866357,4321.1,4321.0,1.27968684]
[1757127180844,0.66796357,4321.1,4321.0,5.51111683]
[1757127181937,0.66796357,4321.1,4321.0,5.27968684]
[1757127182139,0.97166357,4321.1,4321.0,5.27968684]
[1757127182334,1.16636357,4321.1,4321.0,1.27968684]
[1757127183039,0.08108365,4321.7,4321.0,5.27968684]
[1757127183240,0.3037,4321.8,4321.6,1.04768684]
[1757127183440,0.3037,4321.8,4321.7,0.232]
[1757127186540,0.4984,4321.8,4321.7,0.232]
[1757127186744,0.7043,4321.8,4321.7,0.232]
[1757127187040,0.8242,4321.5,4321.4,3.2078]
[1757127187242,0.8242,4321.5,4321.4,3.4398]
[1757127192936,0.8242,4321.5,4321.4,0.232]
[1757127193246,0.8242,4321.5,4321.2,1.04768684]
[1757127193451,0.7043,4321.4,4321.3,0.232]
[1757127195149,1.05912093,4321.4,4321.2,1.04768684]
[1757127195446,1.36282093,4321.3,4321.2,1.04768684]
[1757127195644,1.36282093,4321.3,4321.2,1.27968684]
[1757127198145,1.36282093,4321.3,4321.2,1.04768684]
[1757127198342,1.36282093,4321.3,4321.2,1.27968684]
[1757127204569,1.36282093,4321.3,4321.2,1.28208684]
[1757127205467,0.96222093,4321.3,4321.2,1.28598684]
[1757127206166,0.96222093,4321.3,4321.2,1.28448684]
[1757127207967,1.16342093,4321.3,4321.2,1.28448684]
[1757127211668,0.96222093,4321.3,4321.2,1.28598684]
[1757127213871,1.16342093,4321.3,4321.2,1.28448684]
[1757127217563,1.36802093,4321.3,4321.2,1.28448684]
[1757127217760,0.1227,4321.0,4320.9,3.2078]
[1757127218072,1.49762093,4321.0,4320.9,3.4398]
[1757127221371,1.49762093,4321.0,4320.9,3.4422]
[1757127222478,1.49762093,4321.0,4320.9,3.2078]
[1757127222675,0.7164,4320.4,4320.3,3.2078]
[1757127222973,1.37492093,4320.4,4320.3,3.4398]
[1757127224078,1.37492093,4320.4,4320.3,3.2078]
[1757127224375,1.37492093,4320.4,4320.3,3.4398]
[1757127226569,1.37492093,4320.4,4320.3,3.2078]
[1757127226772,1.37492093,4320.4,4319.4,0.0048]
[1757127226773,0.5285,4319.5,4319.4,0.0048]
[1757127227074,0.5285,4319.5,4319.4,1.28548684]
[1757127227279,0.8391,4319.5,4319.4,1.28548684]
[1757127231573,0.8391,4319.5,4319.4,1.47604266]
[1757127232475,0.1227,4320.0,4319.4,1.47604266]
[1757127232676,0.3066,4320.4,4319.9,1.23824266]
[1757127232877,0.3066,4320.4,4320.0,0.233]
[1757127233076,0.5152,4320.4,4320.0,0.233]
[1757127242089,0.7118,4320.1,4320.0,0.233]
[1757127245393,0.7118,4320.1,4320.0,1.47124266]
[1757127248986,0.7118,4320.1,4320.0,0.233]
[1757127249697,1.36523003,4320.1,4320.0,0.233]
[1757127249899,1.36526355,4320.1,4320.0,0.233]
[1757127250097,1.36526355,4320.1,4319.8,3.2078]
[1757127250300,1.17596355,4320.0,4319.9,0.233]
[1757127250489,1.48256355,4320.0,4319.9,0.233]
[1757127251189,1.17596355,4320.0,4319.8,3.2078]
[1757127251397,0.8291,4320.0,4319.9,0.233]
[1757127251599,1.48292154,4320.0,4319.9,0.233]
[1757127252399,1.17632154,4320.0,4319.9,0.233]
[1757127252898,0.7118,4319.9,4319.8,3.2078]
[1757127253088,1.36562154,4319.9,4319.8,3.4408]
[1757127255098,1.05902154,4319.9,4319.8,0.233]
[1757127255299,1.36562154,4319.9,4319.8,0.233]
[1757127257905,0.3066,4319.8,4319.6,1.23824266]
[1757127258112,1.36562154,4319.7,4319.6,1.23824266]
[1757127258311,1.36562154,4319.7,4319.6,1.47124266]
[1757127259311,1.36562154,4319.7,4319.6,1.23934266]
[1757127259613,1.36562154,4319.7,4319.6,1.47234266]
[1757127264614,1.36562154,4319.7,4319.6,1.23934266]
[1757127264911,1.36562154,4319.7,4319.6,1.47124266]
[1757127266015,0.7141,4319.4,4319.3,3.2078]
[1757127266211,0.7141,4319.4,4319.3,3.4408]
[1757127266609,0.7141,4319.4,4319.3,3.2078]
[1757127267009,0.7141,4319.4,4319.3,3.4408]
[1757127267210,0.7141,4319.4,4319.3,3.2078]
[1757127267409,0.7141,4319.4,4319.3,3.4408]
[1757127268109,0.5178,4319.4,4319.3,3.4408]
[1757127274321,0.5178,4319.4,4319.3,3.2078]
[1757127274628,1.37140817,4319.4,4319.3,3.4408]
[1757127275320,1.37140817,4319.4,4319.3,3.2078]
[1757127275521,1.37140817,4319.4,4319.3,3.4408]
[1757127276326,1.37140817,4319.4,4319.3,3.2078]
[1757127276623,1.37140817,4319.4,4319.3,3.4408]
[1757127281228,1.37140817,4319.4,4319.3,3.2078]
[1757127281423,1.37140817,4319.4,4319.3,3.4408]
[1757127282433,1.37140817,4319.4,4319.3,3.2078]
[1757127282632,1.37140817,4319.4,4319.3,3.4408]
[1757127290933,1.17510817,4319.4,4319.3,3.4408]
[1757127291333,0.97650817,4319.4,4319.3,3.4408]
[1757127292144,0.97650817,4319.4,4319.3,3.2078]
[1757127292440,0.97650817,4319.4,4319.3,3.4408]
[1757127293535,0.97650817,4319.4,4319.3,4.48911777]
[1757127295141,0.97650817,4319.4,4319.3,4.25611777]
[1757127295342,0.97650817,4319.4,4319.3,4.48911777]
[1757127295544,0.3192,4319.4,4319.3,4.48911777]
[1757127295742,0.97695979,4319.4,4319.3,4.48911777]
[1757127295938,1.18635979,4319.4,4319.3,4.48911777]
[1757127305949,0.97695979,4319.4,4319.3,4.48911777]
[1757127307748,0.65775979,4319.4,4319.3,4.48911777]
[1757127308053,0.95715979,4319.4,4319.3,4.48911777]
[1757127309549,1.36345979,4319.4,4319.3,3.4408]
[1757127311354,1.16655979,4319.4,4319.3,4.48911777]
[1757127311657,0.95715979,4319.4,4319.3,4.48911777]
[1757127312060,1.16655979,4319.4,4319.3,4.48911777]
[1757127313450,1.36345979,4319.4,4319.3,3.4408]
[1757127313658,1.16655979,4319.4,4319.3,4.48911777]
[1757127315758,1.36345979,4319.4,4319.3,4.48911777]
[1757127317974,1.36345979,4319.4,4319.3,3.4408]
[1757127321367,1.36345979,4319.4,4319.3,3.2078]
[1757127321866,1.36345979,4319.4,4319.3,3.4408]
[1757127332072,1.36345979,4319.4,4319.3,3.2078]
[1757127332277,1.36345979,4319.4,4319.3,3.4408]
[1757127337178,1.36345979,4319.4,4319.3,3.2078]
[1757127337372,1.16655979,4319.4,4319.3,3.4408]
[1757127338274,0.95715979,4319.4,4319.3,3.4408]
[1757127338976,0.65775979,4319.4,4319.3,3.4408]
[1757127339177,0.94995979,4319.4,4319.3,3.4408]
[1757127340076,1.14765979,4319.4,4319.3,3.4408]
[1757127340374,1.34415979,4319.4,4319.3,3.4408]
[1757127348476,1.14765979,4319.4,4319.3,3.4408]
[1757127349081,1.34845979,4319.4,4319.3,3.4408]
[1757127349277,0.94995979,4319.4,4319.3,3.4408]
[1757127353077,0.94995979,4319.4,4319.3,3.2078]
[1757127353279,0.94995979,4319.4,4319.3,3.4408]
[1757127354475,0.65775979,4319.4,4319.3,3.4408]
[1757127355185,0.94895979,4319.4,4319.3,3.4408]
[1757127359093,0.65775979,4319.4,4319.3,3.4408]
[1757127359386,0.94895979,4319.4,4319.3,3.4408]
[1757127364389,0.94895979,4319.4,4319.3,3.2078]
[1757127364590,0.94895979,4319.4,4319.3,3.4408]
[1757127372503,1.15185979,4319.4,4319.3,3.4408]
[1757127373901,1.15185979,4319.4,4319.3,3.2078]
[1757127374093,0.4941,4319.4,4319.3,3.4398]
[1757127374397,1.15313053,4319.4,4319.3,3.4398]
[1757127376702,1.15313053,4319.4,4319.3,3.2078]
[1757127376902,1.15313053,4319.4,4319.3,3.4398]
[1757127377705,1.15313053,4319.4,4319.3,3.2078]
[1757127377903,1.15313053,4319.4,4319.3,3.4398]
[1757127383416,0.95023053,4319.4,4319.3,3.4398]
[1757127383717,0.65903053,4319.4,4319.3,3.4398]
[1757127383915,0.308,4320.0,4319.3,8.08801]
[1757127384103,0.308,4320.4,4319.8,3.2078]
[1757127384307,0.322,4320.5,4320.1,1.23837156]
[1757127384509,0.1993,4320.4,4320.2,0.51848483]
[1757127384710,0.5073,4320.4,4320.3,0.28648483]
[1757127385408,0.7163,4320.4,4320.3,0.28648483]
[1757127386618,0.7163,4320.4,4320.3,0.51848483]
[1757127387315,0.7163,4320.4,4320.3,0.51830118]
[1757127395924,1.37380484,4320.4,4320.3,0.51830118]
[1757127396825,1.37380484,4320.4,4320.3,0.51791588]
[1757127401030,1.37380484,4320.4,4320.3,0.51781636]
[1757127408834,1.37380484,4320.4,4320.3,0.52092052]
[1757127410337,0.96550484,4320.4,4320.3,0.52092052]